[Event "European School-ch 2019"]
[Site "Mamaia"]
[Date "2019.06.01"]
[Round "2.55"]
[White "Mihailova, Alina"]
[Black "Vorobyova, Ekaterina"]
[Result "0-1"]
[ECO "A40"]
[WhiteElo "1825"]
[BlackElo "1795"]
[Annotator "NA"]
[PlyCount "50"]
[EventDate "2019.05.31"]
[EventType "swiss"]
[EventCountry "ROU"]
[SourceTitle "playchess.com"]
[Source "ChessBase"]
[SourceQuality "1"]
[TimeControl "40/5400+30:1800+30"]

1. d4 {[%emt 0:00:00]} Nf6 {[%emt 0:00:00]} 2. c4 {[%emt 0:00:00]} e6 {[%emt 0:00:00]} 3. g3 {[%emt 0:00:00]} d5 {[%emt 0:01:21]} 4. Nf3 {[%emt 0:00:04]} c5 {[%emt 0:04:19]} 5. cxd5 {[%emt 0:00:17]} exd5 {[%emt 0:00:14]} 6. Bg2 {[%emt 0:00:13]} Nc6 {[%emt 0:00:14]} 7. O-O {[%emt 0:00:32]} cxd4 8. Nxd4 {[%emt 0:01:13]} Bc5 {[%emt 0:02:21]} 9. Nb3 {[%emt 0:01:41]} Be7 {[%emt 0:02:27]} 10. Nc3 {[%emt 0:02:17]} Be6 {[%emt 0:00:48]} 11. Bg5 {[%emt 0:09:22]} O-O {[%emt 0:03:46]} 12. Rb1 {[%emt 0:13:33]} Bf5 {[%emt 0:09:55]} 13. Rc1 {[%emt 0:00:54]} d4 {[%emt 0:05:21]} 14. Nb5 {[%emt 0:06:28]} d3 {[%emt 0:01:42]} 15. Re1 {[%emt 0:12:30]} Qb6 {[%emt 0:16:22]} 16. Bxc6 {[%emt 0:03:55]} Ng4 {[%emt 0:09:20]} 17. e3 {[%emt 0:05:38]} Bxg5 {[%emt 0:12:50]} 18. N5d4 {[%emt 0:02:25]} Bc8 {[%emt 0:08:48]} 19. Be4 {[%emt 0:02:45]} Qh6 {[%emt 0:04:22]} 20. h4 {[%emt 0:03:34]} Bxh4 {[%emt 0:05:39]} 21. gxh4 {[%emt 0:04:38]} Qxh4 {[%emt 0:00:09]} 22. Qd2 {[%emt 0:00:29]} Qh2+ {[%emt 0:07:41]} 23. Kf1 {[%emt 0:00:15]} Ne5 {[%emt 0:01:56]} 24. Bg2 {[%emt 0:02:49]} Bh3 {[%emt 0:00:31]} 25. Bxh3 {[%emt 0:00:13]} Qh1# {[%emt 0:00:07]} 0-1

[Event "European School-ch 2019"]
[Site "Mamaia"]
[Date "2019.06.02"]
[Round "3.1"]
[White "Schitco, Ivan"]
[Black "David, Bogdan-Emanuel"]
[Result "1-0"]
[ECO "B06"]
[WhiteElo "2458"]
[BlackElo "2162"]
[Annotator "ChessBase"]
[PlyCount "103"]
[EventDate "2019.05.31"]
[EventType "swiss"]
[EventCountry "ROU"]
[SourceTitle "playchess.com"]
[Source "ChessBase"]
[SourceQuality "1"]
[TimeControl "40/5400+30:1800+30"]

1. d4 {[%emt 0:00:00]} d6 {[%emt 0:00:00]} 2. e4 {[%emt 0:00:00]} g6 {[%emt 0:00:08]} 3. Nf3 {[%emt 0:00:38]} Bg7 {[%emt 0:00:29]} 4. c3 {[%emt 0:00:30]} Nf6 {[%emt 0:01:03]} 5. Bd3 {[%emt 0:00:17]} O-O {[%emt 0:01:29]} 6. O-O {[%emt 0:00:29]} Nc6 {[%emt 0:03:29]} 7. Re1 {[%emt 0:00:35]} e5 {[%emt 0:01:09]} 8. h3 {[%emt 0:00:22]} Re8 {[%emt 0:05:15]} 9. Na3 {[%emt 0:02:45]} d5 {[%emt 0:13:12]} 10. exd5 {[%emt 0:00:30]} Nxd5 {[%emt 0:12:37]} 11. Bg5 {[%emt 0:00:51]} f6 {[%emt 0:14:04]} 12. Bd2 {[%emt 0:01:57]} Be6 {[%emt 0:06:54]} 13. Bb5 {[%emt 0:11:13]} Bf7 {[%emt 0:11:02]} 14. dxe5 {[%emt 0:03:58]} fxe5 {[%emt 0:03:03]} 15. Ng5 {[%emt 0:02:38]} Rf8 {[%emt 0:03:57]} 16. Nc4 {[%emt 0:07:26]} Nf4 {[%emt 0:06:46]} 17. Bxf4 {[%emt 0:05:48]} exf4 {[%emt 0:00:50]} 18. Nxf7 {[%emt 0:00:44]} Rxf7 {[%emt 0:00:44]} 19. Bxc6 {[%emt 0:03:56]} bxc6 {[%emt 0:00:26]} 20. Qxd8+ {[%emt 0:00:42]} Rxd8 {[%emt 0:00:01]} 21. Rad1 {[%emt 0:01:39]} Rd5 {[%emt 0:03:51]} 22. Re8+ {[%emt 0:00:58]} Rf8 {[%emt 0:00:22]} 23. Rxf8+ {[%emt 0:02:32]} Kxf8 {[%emt 0:01:05]} 24. Re1 {[%emt 0:00:18]} Kf7 {[%emt 0:00:29]} 25. Kf1 {[%emt 0:00:16]} g5 {[%emt 0:01:38]} 26. Re4 {[%emt 0:00:42]} Bf6 {[%emt 0:02:28]} 27. Ke2 {[%emt 0:01:20]} h6 {[%emt 0:01:55]} 28. Nd2 {[%emt 0:01:07]} Be7 {[%emt 0:03:17]} 29. Rc4 {[%emt 0:01:59]} Re5+ {[%emt 0:01:18]} 30. Kf3 {[%emt 0:01:56]} Rb5 {[%emt 0:01:11]} 31. Nb3 {[%emt 0:01:21]} Rb6 {[%emt 0:00:40]} 32. Ra4 {[%emt 0:00:24]} a6 {[%emt 0:00:11]} 33. Re4 {[%emt 0:02:49]} Kf6 {[%emt 0:00:44]} 34. Ke2 {[%emt 0:00:40]} Rb5 {[%emt 0:00:25]} 35. Rc4 {[%emt 0:00:30]} Rb6 {[%emt 0:00:05]} 36. Kd3 {[%emt 0:00:49]} c5 {[%emt 0:00:59]} 37. Re4 {[%emt 0:00:39]} Rd6+ {[%emt 0:00:34]} 38. Kc4 {[%emt 0:00:54]} Rd1 {[%emt 0:00:25]} 39. f3 {[%emt 0:00:16]} h5 {[%emt 0:00:41]} 40. Re2 {[%emt 0:00:00]} Bd6 {[%emt 0:00:00]} 41. Rd2 {[%emt 0:03:27]} Re1 {[%emt 0:03:49]} 42. Nxc5 {[%emt 0:01:08]} Bxc5 {[%emt 0:00:18]} 43. Kxc5 {[%emt 0:00:02]} Re6 {[%emt 0:00:15]} 44. a4 {[%emt 0:00:21]} g4 {[%emt 0:02:58]} 45. hxg4 {[%emt 0:01:07]} hxg4 {[%emt 0:00:08]} 46. fxg4 {[%emt 0:01:16]} Kg5 {[%emt 0:00:09]} 47. b4 {[%emt 0:01:28]} Kxg4 {[%emt 0:00:25]} 48. a5 {[%emt 0:01:13]} Kg3 {[%emt 0:00:51]} 49. c4 {[%emt 0:00:18]} Rg6 {[%emt 0:01:20]} 50. b5 {[%emt 0:00:21]} Kh2 {[%emt 0:00:54]} 51. b6 {[%emt 0:00:13]} cxb6+ {[%emt 0:00:27]} 52. axb6 {[%emt 0:00:02]} 1-0

[Event "European School-ch 2019"]
[Site "Mamaia"]
[Date "2019.06.02"]
[Round "3.2"]
[White "Mammadov, Sadig"]
[Black "Stoleriu, George"]
[Result "1/2-1/2"]
[ECO "C04"]
[WhiteElo "2208"]
[BlackElo "2372"]
[Annotator "ChessBase"]
[PlyCount "83"]
[EventDate "2019.05.31"]
[EventType "swiss"]
[EventCountry "ROU"]
[SourceTitle "playchess.com"]
[Source "ChessBase"]
[SourceQuality "1"]
[TimeControl "40/5400+30:1800+30"]

1. e4 {[%emt 0:00:44]} e6 {[%emt 0:00:00]} 2. d4 {[%emt 0:00:12]} d5 {[%emt 0:00:00]} 3. Nd2 {[%emt 0:00:03]} Nc6 4. Ngf3 {[%emt 0:00:19]} Nf6 {[%emt 0:00:00]} 5. e5 {[%emt 0:00:17]} Nd7 {[%emt 0:00:00]} 6. c3 {[%emt 0:01:08]} f6 {[%emt 0:00:03]} 7. exf6 {[%emt 0:01:55]} Qxf6 {[%emt 0:00:04]} 8. Bd3 {[%emt 0:00:09]} e5 {[%emt 0:04:52]} 9. dxe5 {[%emt 0:04:33]} Ncxe5 {[%emt 0:00:22]} 10. Be2 {[%emt 0:01:19]} Bd6 {[%emt 0:01:05]} 11. O-O {[%emt 0:09:34]} Ng6 {[%emt 0:22:45]} 12. c4 {[%emt 0:09:57]} c6 {[%emt 0:00:20]} 13. cxd5 {[%emt 0:05:38]} cxd5 {[%emt 0:00:06]} 14. Nb1 {[%emt 0:01:23]} O-O {[%emt 0:10:42]} 15. Qxd5+ Kh8 {[%emt 0:00:05]} 16. Nc3 {[%emt 0:14:43]} Nb6 {[%emt 0:00:35]} 17. Qh5 {[%emt 0:11:43]} Bf5 {[%emt 0:04:47]} 18. Bg5 {[%emt 0:07:36]} Qf7 {[%emt 0:03:09]} 19. Nd4 {[%emt 0:05:05]} Be5 {[%emt 0:08:39]} 20. Nxf5 {[%emt 0:01:01]} Qxf5 {[%emt 0:00:02]} 21. Be3 {[%emt 0:00:49]} Qc2 {[%emt 0:02:46]} 22. Rac1 {[%emt 0:05:11]} Qf5 {[%emt 0:05:09]} 23. Qxf5 {[%emt 0:00:34]} Rxf5 {[%emt 0:00:01]} 24. Bd3 {[%emt 0:04:39]} Rf6 {[%emt 0:00:31]} 25. Rfe1 {[%emt 0:02:26]} Nf4 {[%emt 0:04:24]} 26. Bf1 {[%emt 0:01:02]} Rf5 {[%emt 0:02:10]} 27. g3 {[%emt 0:02:56]} Nfd5 {[%emt 0:00:06]} 28. g4 {[%emt 0:05:18]} Rf6 {[%emt 0:05:39]} 29. Nxd5 {[%emt 0:00:08]} Nxd5 {[%emt 0:00:46]} 30. Bg5 {[%emt 0:00:23]} Bxb2 {[%emt 0:01:10]} 31. Rcd1 {[%emt 0:01:53]} Nc3 {[%emt 0:01:08]} 32. Rd2 {[%emt 0:01:36]} Rg6 {[%emt 0:01:52]} 33. Rxb2 {[%emt 0:01:05]} Rxg5 {[%emt 0:00:07]} 34. f3 {[%emt 0:00:14]} b6 {[%emt 0:00:33]} 35. Rc2 {[%emt 0:00:34]} Nd5 {[%emt 0:01:02]} 36. Rd2 {[%emt 0:00:43]} Nf6 {[%emt 0:01:03]} 37. Re7 {[%emt 0:00:23]} Rc5 {[%emt 0:01:49]} 38. h4 {[%emt 0:00:22]} h6 {[%emt 0:00:05]} 39. Rb7 {[%emt 0:00:45]} Nd5 {[%emt 0:01:24]} 40. Rd7 {[%emt 0:00:00]} Nf4 {[%emt 0:00:00]} 41. Rf7 {[%emt 0:01:50]} Ng6 {[%emt 0:06:22]} 42. h5 {[%emt 0:05:57]} 1/2-1/2

[Event "European School-ch 2019"]
[Site "Mamaia"]
[Date "2019.06.02"]
[Round "3.3"]
[White "Gayun, Dmytro"]
[Black "Zemnitskiy, Alexander"]
[Result "1-0"]
[ECO "A88"]
[WhiteElo "2271"]
[BlackElo "2024"]
[Annotator "ChessBase"]
[PlyCount "117"]
[EventDate "2019.05.31"]
[EventType "swiss"]
[EventCountry "ROU"]
[SourceTitle "playchess.com"]
[Source "ChessBase"]
[SourceQuality "1"]
[TimeControl "40/5400+30:1800+30"]

1. d4 {[%emt 0:00:00]} f5 {[%emt 0:00:00]} 2. Nf3 {[%emt 0:00:00]} Nf6 {[%emt 0:00:00]} 3. c4 {[%emt 0:02:01]} g6 {[%emt 0:00:31]} 4. g3 {[%emt 0:04:06]} Bg7 {[%emt 0:00:06]} 5. Bg2 {[%emt 0:00:07]} O-O {[%emt 0:00:13]} 6. O-O {[%emt 0:03:34]} d6 {[%emt 0:00:22]} 7. Nc3 {[%emt 0:00:24]} c6 {[%emt 0:01:28]} 8. b3 {[%emt 0:11:22]} Qc7 {[%emt 0:01:50]} 9. Qc2 {[%emt 0:02:38]} a5 {[%emt 0:10:14]} 10. Bb2 {[%emt 0:00:49]} e5 {[%emt 0:01:22]} 11. dxe5 {[%emt 0:01:07]} dxe5 {[%emt 0:00:04]} 12. e4 {[%emt 0:00:18]} Na6 {[%emt 0:01:20]} 13. Nh4 {[%emt 0:10:56]} f4 {[%emt 0:00:44]} 14. Na4 {[%emt 0:06:16]} Nd7 {[%emt 0:02:35]} 15. Ba3 {[%emt 0:02:38]} Re8 {[%emt 0:03:03]} 16. Nf3 {[%emt 0:06:37]} b6 {[%emt 0:09:37]} 17. Rfd1 {[%emt 0:03:00]} Bf8 {[%emt 0:14:49]} 18. Bb2 {[%emt 0:06:46]} Ndc5 {[%emt 0:01:49]} 19. Nxc5 {[%emt 0:00:13]} Nxc5 {[%emt 0:01:39]} 20. gxf4 {[%emt 0:05:09]} exf4 {[%emt 0:00:34]} 21. Qc3 {[%emt 0:00:12]} Bg7 {[%emt 0:00:51]} 22. Qxg7+ {[%emt 0:00:06]} Qxg7 {[%emt 0:00:01]} 23. Bxg7 {[%emt 0:00:10]} Kxg7 {[%emt 0:00:02]} 24. e5 {[%emt 0:02:37]} Bg4 {[%emt 0:00:38]} 25. Rd6 {[%emt 0:04:14]} Bxf3 {[%emt 0:11:33]} 26. Bxf3 {[%emt 0:00:04]} Rxe5 {[%emt 0:00:35]} 27. Bxc6 {[%emt 0:02:11]} Rb8 {[%emt 0:00:26]} 28. Rad1 {[%emt 0:06:54]} Re2 {[%emt 0:01:19]} 29. R1d2 {[%emt 0:01:07]} Rxd2 {[%emt 0:03:23]} 30. Rxd2 {[%emt 0:00:15]} Rc8 {[%emt 0:01:14]} 31. Rd6 {[%emt 0:02:30]} Rf8 {[%emt 0:00:04]} 32. Bf3 {[%emt 0:00:57]} Rf6 {[%emt 0:00:10]} 33. Rd8 {[%emt 0:02:42]} Rf8 {[%emt 0:01:12]} 34. Rd4 {[%emt 0:02:12]} g5 {[%emt 0:04:46]} 35. Kg2 {[%emt 0:01:59]} Kg6 {[%emt 0:01:45]} 36. h4 {[%emt 0:01:51]} h6 {[%emt 0:00:51]} 37. hxg5 {[%emt 0:00:28]} hxg5 {[%emt 0:00:07]} 38. Bg4 {[%emt 0:00:41]} Rf6 {[%emt 0:01:36]} 39. Kf3 {[%emt 0:02:20]} Rc6 {[%emt 0:01:02]} 40. Rd5 {[%emt 0:00:00]} Rf6 {[%emt 0:00:00]} 41. Rd8 {[%emt 0:09:20]} Rc6 {[%emt 0:08:18]} 42. Rd4 {[%emt 0:03:29]} Rf6 {[%emt 0:03:35]} 43. Ke2 {[%emt 0:00:54]} Ne6 {[%emt 0:01:19]} 44. Rd5 {[%emt 0:00:25]} f3+ {[%emt 0:02:38]} 45. Ke3 {[%emt 0:01:13]} Nf4 {[%emt 0:00:18]} 46. Rb5 {[%emt 0:08:03]} Ng2+ {[%emt 0:00:15]} 47. Kd2 {[%emt 0:01:14]} Rd6+ {[%emt 0:01:44]} 48. Rd5 {[%emt 0:02:14]} Rf6 {[%emt 0:00:20]} 49. Rb5 {[%emt 0:05:59]} Rd6+ {[%emt 0:02:40]} 50. Kc3 {[%emt 0:00:26]} Rf6 {[%emt 0:00:14]} 51. a3 {[%emt 0:04:05]} Nh4 {[%emt 0:02:10]} 52. b4 {[%emt 0:01:06]} axb4+ {[%emt 0:00:13]} 53. axb4 {[%emt 0:00:02]} Rf4 {[%emt 0:00:06]} 54. Rxb6+ {[%emt 0:00:08]} Kg7 {[%emt 0:00:01]} 55. Bh3 {[%emt 0:02:26]} g4 {[%emt 0:00:05]} 56. Bf1 {[%emt 0:00:05]} Nf5 {[%emt 0:00:06]} 57. Bd3 {[%emt 0:01:10]} Ne7 {[%emt 0:01:11]} 58. Re6 Kf7 59. Re1 1-0

[Event "European School-ch 2019"]
[Site "Mamaia"]
[Date "2019.06.02"]
[Round "3.4"]
[White "Paraschiv, Petronela-Alexandra"]
[Black "Bulau, Andrei-Cristian"]
[Result "1/2-1/2"]
[ECO "B53"]
[WhiteElo "1792"]
[BlackElo "2244"]
[Annotator "ChessBase"]
[PlyCount "82"]
[EventDate "2019.05.31"]
[EventType "swiss"]
[EventCountry "ROU"]
[SourceTitle "playchess.com"]
[Source "ChessBase"]
[SourceQuality "1"]
[TimeControl "40/5400+30:1800+30"]

1. e4 {[%emt 0:00:00]} c5 {[%emt 0:00:05]} 2. Nf3 {[%emt 0:00:00]} d6 {[%emt 0:00:33]} 3. d4 {[%emt 0:00:00]} cxd4 {[%emt 0:00:04]} 4. Qxd4 {[%emt 0:00:20]} Nc6 {[%emt 0:01:17]} 5. Bb5 {[%emt 0:00:59]} a6 {[%emt 0:00:19]} 6. Bxc6+ {[%emt 0:00:24]} bxc6 {[%emt 0:00:02]} 7. O-O {[%emt 0:01:10]} e5 {[%emt 0:00:03]} 8. Qd3 {[%emt 0:03:46]} Nf6 {[%emt 0:00:09]} 9. Rd1 {[%emt 0:00:44]} Qc7 {[%emt 0:00:17]} 10. c4 {[%emt 0:01:22]} Be7 {[%emt 0:00:19]} 11. Bg5 {[%emt 0:01:38]} O-O {[%emt 0:01:35]} 12. Bxf6 {[%emt 0:01:49]} Bxf6 {[%emt 0:02:18]} 13. Nc3 {[%emt 0:01:09]} Be7 {[%emt 0:01:03]} 14. b4 {[%emt 0:02:34]} Be6 {[%emt 0:10:33]} 15. Nd2 {[%emt 0:07:52]} Rfd8 {[%emt 0:03:33]} 16. a4 {[%emt 0:09:20]} Rac8 {[%emt 0:15:20]} 17. Rac1 {[%emt 0:08:31]} g6 {[%emt 0:14:31]} 18. b5 {[%emt 0:04:10]} axb5 {[%emt 0:03:17]} 19. axb5 {[%emt 0:01:43]} f5 {[%emt 0:05:42]} 20. h3 {[%emt 0:08:12]} Bg5 {[%emt 0:03:22]} 21. Rc2 {[%emt 0:18:43]} d5 {[%emt 0:05:08]} 22. b6 {[%emt 0:08:08]} Qxb6 {[%emt 0:02:07]} 23. cxd5 {[%emt 0:01:03]} cxd5 {[%emt 0:00:38]} 24. Nxd5 {[%emt 0:02:05]} Rxc2 {[%emt 0:02:16]} 25. Qxc2 {[%emt 0:00:06]} Bxd5 {[%emt 0:01:26]} 26. exd5 {[%emt 0:00:12]} Rxd5 {[%emt 0:01:25]} 27. Nf3 {[%emt 0:01:04]} Rxd1+ {[%emt 0:06:12]} 28. Qxd1 {[%emt 0:00:04]} Bf6 {[%emt 0:01:38]} 29. Nxe5 {[%emt 0:01:11]} Qe6 {[%emt 0:00:59]} 30. Nf3 {[%emt 0:00:41]} g5 {[%emt 0:00:23]} 31. Nh2 {[%emt 0:01:02]} Be5 {[%emt 0:01:50]} 32. Nf3 {[%emt 0:03:30]} Bf6 {[%emt 0:00:14]} 33. Nh2 {[%emt 0:01:08]} Kg7 {[%emt 0:00:34]} 34. Kf1 {[%emt 0:01:42]} Kg6 {[%emt 0:01:05]} 35. g4 {[%emt 0:00:44]} Qe4 {[%emt 0:01:30]} 36. Qf3 {[%emt 0:01:19]} Qc4+ {[%emt 0:00:48]} 37. Qe2 {[%emt 0:01:28]} Qc1+ {[%emt 0:00:32]} 38. Kg2 {[%emt 0:00:34]} Qf4 {[%emt 0:02:33]} 39. Qe8+ {[%emt 0:00:59]} Kg7 {[%emt 0:00:37]} 40. Qd7+ {[%emt 0:00:00]} Kg6 {[%emt 0:00:00]} 41. Qe8+ {[%emt 0:01:25]} Kg7 {[%emt 0:01:16]} 1/2-1/2

[Event "European School-ch 2019"]
[Site "Mamaia"]
[Date "2019.06.02"]
[Round "3.5"]
[White "Sahin, Hayrun Nisa"]
[Black "Paraschiv, Paul-Alexandru"]
[Result "0-1"]
[ECO "C05"]
[WhiteElo "1734"]
[BlackElo "2055"]
[Annotator "NA"]
[PlyCount "84"]
[EventDate "2019.05.31"]
[EventType "swiss"]
[EventCountry "ROU"]
[SourceTitle "playchess.com"]
[Source "ChessBase"]
[SourceQuality "1"]
[TimeControl "40/5400+30:1800+30"]

1. e4 {[%emt 0:00:00]} e6 {[%emt 0:00:00]} 2. d4 {[%emt 0:00:00]} d5 {[%emt 0:00:00]} 3. Nd2 {[%emt 0:00:11]} Nf6 {[%emt 0:00:08]} 4. e5 {[%emt 0:00:20]} Nfd7 {[%emt 0:00:02]} 5. Ngf3 {[%emt 0:00:16]} c5 {[%emt 0:00:08]} 6. c3 {[%emt 0:00:11]} Nc6 {[%emt 0:00:05]} 7. Bd3 {[%emt 0:00:06]} f6 {[%emt 0:00:30]} 8. exf6 {[%emt 0:00:52]} Nxf6 {[%emt 0:00:47]} 9. O-O {[%emt 0:05:54]} cxd4 {[%emt 0:01:14]} 10. cxd4 {[%emt 0:00:10]} Bd6 {[%emt 0:00:13]} 11. Re1 {[%emt 0:00:41]} O-O {[%emt 0:00:28]} 12. Nf1 {[%emt 0:00:23]} Bd7 {[%emt 0:09:11]} 13. a3 {[%emt 0:01:49]} Rc8 $14 {[%emt 0:03:55]} 14. Bg5 {[%emt 0:05:29]} h6 {[%emt 0:03:00]} 15. Bh4 {[%emt 0:07:33]} Qb6 {[%emt 0:00:16]} 16. b4 {[%emt 0:02:58]} Kh8 {[%emt 0:10:23]} 17. Bc2 {[%emt 0:05:05]} a5 {[%emt 0:04:26]} 18. Qd3 {[%emt 0:26:47]} Kg8 {[%emt 0:03:32]} 19. Bxf6 {[%emt 0:12:39]} Rxf6 {[%emt 0:00:09]} 20. bxa5 {[%emt 0:04:58]} Qa7 {[%emt 0:05:30]} 21. Rad1 {[%emt 0:03:21]} g6 {[%emt 0:02:07]} 22. Bb1 {[%emt 0:03:00]} Ne7 {[%emt 0:01:16]} 23. Ne3 {[%emt 0:03:20]} h5 {[%emt 0:01:37]} 24. Qb3 {[%emt 0:03:31]} Qxa5 {[%emt 0:01:11]} 25. Bc2 {[%emt 0:01:23]} b5 {[%emt 0:01:06]} 26. Ra1 {[%emt 0:01:42]} Rc3 {[%emt 0:00:23]} 27. Qb1 {[%emt 0:00:35]} Rxa3 {[%emt 0:00:29]} 28. Rxa3 {[%emt 0:00:12]} Qxa3 {[%emt 0:00:19]} 29. Ne5 {[%emt 0:00:22]} Be8 {[%emt 0:00:29]} 30. g4 {[%emt 0:00:10]} hxg4 {[%emt 0:01:38]} 31. N3xg4 {[%emt 0:01:21]} Rf4 {[%emt 0:00:29]} 32. Qd1 {[%emt 0:05:55]} Qh3 {[%emt 0:07:21]} 33. Re3 {[%emt 0:00:17]} Qh4 {[%emt 0:00:40]} 34. f3 {[%emt 0:01:08]} Nf5 {[%emt 0:01:17]} 35. Bxf5 {[%emt 0:02:34]} gxf5 {[%emt 0:00:28]} 36. Nf2 {[%emt 0:01:19]} Rxd4 {[%emt 0:01:19]} 37. Qe1 {[%emt 0:00:54]} Qg5+ {[%emt 0:01:13]} 38. Kh1 {[%emt 0:00:10]} Bh5 {[%emt 0:01:28]} 39. Nh3 {[%emt 0:00:46]} Qg7 {[%emt 0:01:04]} 40. f4 {[%emt 0:01:00]} Rd1 {[%emt 0:00:31]} 41. Qxd1 {[%emt 0:30:27]} Bxd1 {[%emt 0:30:05]} 42. Rg3 {[%emt 0:00:01]} Bxe5 {[%emt 0:00:17]} 0-1

[Event "European School-ch 2019"]
[Site "Mamaia"]
[Date "2019.06.02"]
[Round "3.6"]
[White "Denisov, Timofey"]
[Black "Ozdemir, Serhan Berat"]
[Result "0-1"]
[ECO "E91"]
[WhiteElo "1788"]
[BlackElo "1950"]
[Annotator "NA"]
[PlyCount "84"]
[EventDate "2019.05.31"]
[EventType "swiss"]
[EventCountry "ROU"]
[SourceTitle "playchess.com"]
[Source "ChessBase"]
[SourceQuality "1"]
[TimeControl "40/5400+30:1800+30"]

1. d4 {[%emt 0:00:00]} Nf6 {[%emt 0:00:00]} 2. c4 {[%emt 0:00:00]} g6 {[%emt 0:00:00]} 3. Nc3 {[%emt 0:00:00]} Bg7 {[%emt 0:00:00]} 4. e4 {[%emt 0:00:09]} d6 {[%emt 0:00:00]} 5. Nf3 {[%emt 0:00:08]} O-O {[%emt 0:00:00]} 6. Be2 {[%emt 0:00:09]} Bg4 {[%emt 0:00:10]} 7. Be3 {[%emt 0:01:47]} Nfd7 {[%emt 0:00:06]} 8. O-O {[%emt 0:07:50]} c5 {[%emt 0:00:09]} 9. d5 {[%emt 0:00:38]} Na6 {[%emt 0:00:20]} 10. Nd2 {[%emt 0:11:13]} Bxe2 {[%emt 0:00:20]} 11. Qxe2 {[%emt 0:00:02]} Nc7 $14 {[%emt 0:01:39]} 12. f4 {[%emt 0:05:05]} a6 {[%emt 0:04:41]} 13. Nf3 {[%emt 0:03:20]} b5 {[%emt 0:02:26]} 14. e5 {[%emt 0:00:28]} dxe5 {[%emt 0:22:03]} 15. fxe5 {[%emt 0:00:10]} Nxe5 {[%emt 0:01:12]} 16. Nxe5 {[%emt 0:00:21]} Bxe5 {[%emt 0:00:02]} 17. Bxc5 {[%emt 0:00:18]} Bd6 {[%emt 0:05:00]} 18. Bd4 {[%emt 0:09:42]} bxc4 {[%emt 0:00:33]} 19. Qxc4 {[%emt 0:02:08]} Rc8 {[%emt 0:00:30]} 20. Kh1 {[%emt 0:03:43]} Nb5 {[%emt 0:12:09]} 21. Qd3 {[%emt 0:00:17]} Nxd4 {[%emt 0:00:42]} 22. Qxd4 {[%emt 0:00:10]} Qc7 {[%emt 0:03:01]} 23. Qh4 {[%emt 0:04:48]} Qc4 {[%emt 0:05:21]} 24. Qxc4 {[%emt 0:02:17]} Rxc4 {[%emt 0:00:01]} 25. Rac1 {[%emt 0:00:56]} Be5 {[%emt 0:01:48]} 26. Rfd1 {[%emt 0:02:07]} Rfc8 {[%emt 0:00:49]} 27. Rd3 {[%emt 0:01:56]} a5 {[%emt 0:02:25]} 28. g3 {[%emt 0:00:38]} a4 {[%emt 0:00:24]} 29. a3 {[%emt 0:00:59]} Rb8 {[%emt 0:00:53]} 30. Rc2 {[%emt 0:01:06]} Kg7 {[%emt 0:04:01]} 31. Kg2 {[%emt 0:00:34]} Rb3 {[%emt 0:00:34]} 32. Kh3 {[%emt 0:00:56]} Bxc3 {[%emt 0:01:18]} 33. Rdxc3 {[%emt 0:00:14]} Rcxc3 {[%emt 0:00:07]} 34. bxc3 {[%emt 0:00:09]} Rxa3 {[%emt 0:00:08]} 35. c4 {[%emt 0:01:18]} Rd3 {[%emt 0:02:17]} 36. Kg4 {[%emt 0:01:30]} f5+ {[%emt 0:00:08]} 37. Kh3 {[%emt 0:01:51]} a3 {[%emt 0:00:30]} 38. c5 {[%emt 0:00:13]} Rxd5 {[%emt 0:00:06]} 39. c6 {[%emt 0:00:18]} Rd8 {[%emt 0:00:09]} 40. c7 {[%emt 0:00:00]} Rc8 {[%emt 0:00:00]} 41. Ra2 {[%emt 0:00:36]} Rxc7 {[%emt 0:00:02]} 42. Rxa3 {[%emt 0:00:21]} e5 {[%emt 0:00:05]} 0-1

[Event "European School-ch 2019"]
[Site "Mamaia"]
[Date "2019.06.02"]
[Round "3.7"]
[White "Ceres, Dragos"]
[Black "Balan, Bogdan"]
[Result "1-0"]
[ECO "B90"]
[WhiteElo "2291"]
[BlackElo "2027"]
[Annotator "ChessBase"]
[PlyCount "111"]
[EventDate "2019.05.31"]
[EventType "swiss"]
[EventCountry "ROU"]
[SourceTitle "playchess.com"]
[Source "ChessBase"]
[SourceQuality "1"]
[TimeControl "40/5400+30:1800+30"]

1. e4 {[%emt 0:00:00]} c5 {[%emt 0:00:00]} 2. Nf3 {[%emt 0:00:00]} d6 {[%emt 0:00:00]} 3. d4 {[%emt 0:00:00]} cxd4 {[%emt 0:00:00]} 4. Nxd4 {[%emt 0:00:00]} Nf6 {[%emt 0:00:00]} 5. Nc3 {[%emt 0:00:00]} a6 {[%emt 0:00:03]} 6. Be3 {[%emt 0:00:00]} e5 {[%emt 0:00:15]} 7. Nb3 {[%emt 0:00:04]} Be6 {[%emt 0:00:11]} 8. f4 {[%emt 0:00:05]} exf4 {[%emt 0:00:57]} 9. Bxf4 {[%emt 0:00:15]} Nc6 {[%emt 0:03:48]} 10. Qd2 {[%emt 0:00:04]} d5 {[%emt 0:03:19]} 11. O-O-O {[%emt 0:00:38]} Bb4 {[%emt 0:25:34]} 12. Qd3 {[%emt 0:00:45]} dxe4 {[%emt 0:21:57]} 13. Nxe4 {[%emt 0:00:57]} Nxe4 {[%emt 0:14:16]} 14. Qxe4 {[%emt 0:01:42]} Qe7 {[%emt 0:01:43]} 15. Bd3 {[%emt 0:04:06]} Bxb3 {[%emt 0:01:04]} 16. axb3 {[%emt 0:00:18]} Qxe4 {[%emt 0:00:35]} 17. Bxe4 {[%emt 0:00:08]} Rd8 {[%emt 0:01:57]} 18. c3 {[%emt 0:01:20]} Be7 {[%emt 0:01:10]} 19. Rhe1 {[%emt 0:04:58]} f6 {[%emt 0:08:29]} 20. Bd5 {[%emt 0:15:10]} Rf8 {[%emt 0:04:29]} 21. Re6 {[%emt 0:04:19]} Rxd5 {[%emt 0:00:38]} 22. Rxd5 {[%emt 0:00:13]} Kf7 {[%emt 0:00:05]} 23. Re2 {[%emt 0:00:44]} Rd8 {[%emt 0:00:10]} 24. Rxd8 {[%emt 0:00:27]} Bxd8 {[%emt 0:00:14]} 25. Kc2 {[%emt 0:01:15]} Be7 {[%emt 0:00:23]} 26. Kd3 {[%emt 0:00:46]} Nd8 {[%emt 0:00:57]} 27. Kc4 {[%emt 0:00:32]} Ne6 {[%emt 0:00:14]} 28. Bb8 {[%emt 0:00:03]} Nd8 {[%emt 0:00:44]} 29. Kd5 {[%emt 0:00:54]} Nc6 {[%emt 0:00:08]} 30. Bd6 {[%emt 0:00:05]} Bd8 {[%emt 0:00:11]} 31. b4 {[%emt 0:00:07]} Bb6 {[%emt 0:00:57]} 32. c4 {[%emt 0:00:28]} Bd8 {[%emt 0:00:39]} 33. b5 {[%emt 0:09:24]} axb5 {[%emt 0:00:13]} 34. cxb5 {[%emt 0:00:04]} Na7 {[%emt 0:01:10]} 35. Bb8 {[%emt 0:01:06]} Nxb5 {[%emt 0:00:17]} 36. Kc5 {[%emt 0:00:16]} Bc7 {[%emt 0:01:51]} 37. Bxc7 {[%emt 0:00:18]} Nxc7 {[%emt 0:00:02]} 38. Kb6 {[%emt 0:00:09]} Nd5+ {[%emt 0:00:10]} 39. Kxb7 {[%emt 0:00:07]} g5 {[%emt 0:00:19]} 40. Kc6 {[%emt 0:00:00]} Nb4+ {[%emt 0:00:00]} 41. Kb5 {[%emt 0:01:04]} Nd3 {[%emt 0:00:36]} 42. Kc4 {[%emt 0:00:25]} Nf4 {[%emt 0:00:32]} 43. Rd2 {[%emt 0:00:05]} Ng6 {[%emt 0:00:09]} 44. b4 {[%emt 0:00:05]} Ne5+ {[%emt 0:00:05]} 45. Kc5 {[%emt 0:00:05]} Ke6 {[%emt 0:00:31]} 46. b5 {[%emt 0:00:13]} Nd7+ {[%emt 0:00:08]} 47. Kc6 {[%emt 0:00:51]} Ne5+ {[%emt 0:00:12]} 48. Kc7 {[%emt 0:00:08]} Nc4 {[%emt 0:00:07]} 49. Re2+ {[%emt 0:00:50]} Kd5 {[%emt 0:00:07]} 50. b6 {[%emt 0:00:16]} Nxb6 {[%emt 0:00:07]} 51. Kxb6 {[%emt 0:00:03]} f5 {[%emt 0:00:09]} 52. Re7 {[%emt 0:01:00]} h5 {[%emt 0:00:19]} 53. Rg7 {[%emt 0:00:06]} g4 {[%emt 0:00:05]} 54. Rg5 {[%emt 0:00:34]} Ke4 {[%emt 0:00:06]} 55. Rxh5 {[%emt 0:00:09]} f4 {[%emt 0:00:05]} 56. Rg5 {[%emt 0:00:15] Kd5} 1-0